Cogmind - Beta 16 @@@ ROGUE MODE // 2025.11.22 @ 18:05:26 Player: Jimothy Jimone Result: Destroyed by X-57 Shotgunner with High-powered Shotgun Performance ------------- Evolutions (2) 1000 Regions Visited (3) 600 Robots Destroyed (38) 190 Value Destroyed (1287) 1287 Prototype IDs (2) 40 Alien Tech Used (0) 0 Bonus (0) 0 TOTAL SCORE: 3117 Bonus ------- None Cogmind --------- Core Integrity 0/550 Matter 277/300 Energy 290/290 System Corruption 0% Temperature Cool (0) Movement Walking (175) Ox1 Location -8/Materials Parts ------- > --- POWER (2) -------- Improved Deuterium Engine > --- PROPULSION (4) --- Aluminum Leg > --- UTILITY (2) ------ Improved Signal Interpreter > --- WEAPON (3) ------- Pulse Rifle > --- INVENTORY (5) ---- Improved Ion Engine Peak State ------------ > --- POWER ------------ Light Nuclear Core Light Nuclear Core > --- PROPULSION ------- Aluminum Leg Aluminum Leg Aluminum Leg Aluminum Leg > --- UTILITY ---------- Small Storage Unit Improved Signal Interpreter > --- WEAPON ----------- Pulse Rifle Heavy Assault Rifle Katana > --- INVENTORY -------- Improved Ion Engine Aluminum Leg Aluminum Leg Heavy Assault Rifle Heavy Assault Rifle Heavy Assault Rifle Heavy Assault Rifle Autogun [Rating: 23] Favorites ----------- Power Ion Engine Engine Ion Engine Power Core Light Nuclear Core Propulsion Aluminum Leg Leg Aluminum Leg Utility Small Storage Unit Storage Small Storage Unit Processor Signal Interpreter Weapon Spread Laser Energy Gun Spread Laser Ballistic Gun Heavy Assault Rifle Slashing Weapon Katana Build | -11 -10 -9 -8 ------- Run | Yrd Mat Mat Mat Slots Evolved 4 | . . 2 2 Power 1 | . . . 1 Propulsion 2 | . . 1 1 Utility . | . . . . Weapon 1 | . . 1 . Parts Attached 39 | 6 3 16 14 Power 8 | 1 . 3 4 Engine 6 | 1 . 3 2 Core 2 | . . . 2 Reactor . | . . . . Propulsion 14 | 2 1 9 2 Treads . | . . . . Leg 14 | 2 1 9 2 Wheel . | . . . . Hover . | . . . . Flight . | . . . . Utility 3 | 1 1 . 1 Device . | . . . . Storage 1 | 1 . . . Processor 2 | . 1 . 1 Hackware . | . . . . Protection . | . . . . Artifact . | . . . . Weapon 14 | 2 1 4 7 Energy Gun 6 | 1 1 2 2 Energy Cannon . | . . . . Ballistic Gun 7 | 1 . 1 5 Ballistic Cannon . | . . . . Launcher . | . . . . Special Weapon . | . . . . Impact Weapon . | . . . . Slashing Weapon 1 | . . 1 . Piercing Weapon . | . . . . Special Melee Weapon . | . . . . Unidentified Prototypes . | . . . . Parts Lost 14 | . . . 14 Power 2 | . . . 2 Propulsion 4 | . . . 4 Utility 1 | . . . 1 Weapon 7 | . . . 7 Highest Loss Streak 13 | . . . 13 To Critical Strikes 1 | . . . 1 Average Backups 6 | 3 6 7 6 Power 1 | . 1 1 1 Propulsion 2 | 2 2 2 1 Utility . | . . . . Weapon 3 | . 2 3 3 Tool/Special . | . . . . Unused Backups 6 | . 2 2 2 Power 1 | . . . 1 Propulsion 4 | . 1 2 1 Utility . | . . . . Weapon 1 | . 1 . . Tool/Special . | . . . . Average Slot Usage (%) 95 | . 90 99 90 Engine 9 | . 14 11 5 Core 3 | . . . 10 Leg 31 | . 28 33 31 Storage 10 | . 14 11 7 Processor 9 | . 5 11 9 Energy Gun 15 | . 14 21 8 Ballistic Gun 11 | . 14 11 11 Slashing Weapon 2 | . . . 5 Peak Build Rating 23 | 6 9 14 23 Average Rating 13 | 4 7 13 18 On Entrance 7 | . 6 8 14 Avg Prop Armor Cover (%) . | . . . . Naked Turns . | . . . . Heaviest Build 24 | 14 15 19 24 Greatest Support 40 | 20 20 33 40 Greatest Overweight (x) 4 | 4 . . 1 Average Overweight (x) . | . . . . Largest Inventory Capacity 8 | 8 8 8 8 Average Capacity 7 | 6 8 8 7 Most Carried 8 | 5 8 8 8 Average Carried 6 | 3 6 7 6 Final Capacity 8 | 8 8 8 5 Final Carried 8 | 3 7 8 1 Class Distribution -------------------- 43% | Scavenger-Gunner 23% | Mutant 21% | Scavenger-Mutant 11% | Gunner Dominant Class ---------------- Mutant | -10/Materials Scavenger-Gunner | -9/Materials Scavenger-Mutant | -8/Materials Resources | -11 -10 -9 -8 ----------- Run | Yrd Mat Mat Mat Matter Collected 1074 | 220 85 311 458 Remotely . | . . . . Salvage Created 1286 | . 85 549 652 Parts 82 | . 8 33 41 Haulers Intercepted . | . . . . Recyclers Shooed 1 | . . . 1 Parts Field Recycled . | . . . . Retrieved Matter . | . . . . Parts Self-Destructed . | . . . . Prevented . | . . . . Parts Restored . | . . . . Kills | -11 -10 -9 -8 ------- Run | Yrd Mat Mat Mat Combat Hostiles Destroyed 34 | . 2 16 16 Melee 4 | . . . 4 Guns 30 | . 2 16 12 Classes Destroyed 7 | . 2 2 3 Recycler 1 | . . . 1 Watcher 3 | . 1 2 . Swarmer 7 | . . . 7 Grunt 14 | . 2 10 2 Duelist 1 | . . 1 . Sentry 9 | . . 5 4 Specialist 3 | . . . 3 Best Kill Streak 6 | . 2 4 6 Combat Bots Only 6 | . 2 3 6 Max Kills in Single Turn 1 | . 1 1 1 Gunslinging . | . . . . Exploded . | . . . . Melee 1 | . . . 1 Uniques/NPCs Destroyed . | . . . . Combat | -11 -10 -9 -8 -------- Run | Yrd Mat Mat Mat Hostile Shots Fired 234 | . 5 65 164 Missed 50 | . . 18 32 Hits 184 | . 5 47 132 Melee 3 | . . 3 . Projectile 181 | . 5 44 132 Critical Strikes 3 | . . . 3 Damage Taken 2730 | . 51 661 2018 Core 654 | . 10 86 558 Absorbed by Shields . | . . . . Core Remaining (%) 91 | 100 96 78 . Volleys Fired 105 | . 5 39 61 Largest 3 | . 2 3 3 Hottest 153 | . 85 153 109 Shots Fired 230 | . 10 106 114 Gun 230 | . 10 106 114 Cannon . | . . . . Launcher . | . . . . Special . | . . . . Kinetic 129 | . 5 39 85 Thermal 101 | . 5 67 29 Explosive . | . . . . Electromagnetic . | . . . . Robot Hit Streak 22 | . 22 17 9 Robot Miss Streak 5 | . 3 5 5 Penetration Max . | . . . . Secondary Targets 1 | . . 1 . Max Gunslinging Chain 1 | . . 1 . Shots Hit Robots 171 | . 9 82 80 Core Hits 116 | . 8 72 36 Critical Kills 1 | . . . 1 Critical Parts Destroyed 1 | . . . 1 Critical Strikes 5 | . . . 5 Burn 2 | . . . 2 Destroy 2 | . . . 2 Sever 1 | . . . 1 Melee Attacks 12 | . . 2 10 Impact . | . . . . Slashing 12 | . . 2 10 Piercing . | . . . . Sneak Attacks . | . . . . Combat Hostiles . | . . . . Follow-up Attacks . | . . . . Damage Inflicted 2779 | . 140 1225 1414 Guns 2452 | . 140 1159 1153 Cannons . | . . . . Explosions . | . . . . Melee 321 | . . 66 255 Ramming 6 | . . . 6 Kinetic 1136 | . 54 295 787 Thermal 1316 | . 86 864 366 Explosive . | . . . . Electromagnetic . | . . . . Impact . | . . . . Slashing 321 | . . 66 255 Piercing . | . . . . Highest Corruption . | . . . . Average Corruption . | . . . . Corruption Purged . | . . . . Corruption Blocked . | . . . . Overload Shots . | . . . . Overflow Damage . | . . . . Projectiles . | . . . . Explosions . | . . . . Melee . | . . . . Knockbacks . | . . . . Impact . | . . . . Kinetic . | . . . . Secondary . | . . . . Self-Inflicted Damage . | . . . . Shots . | . . . . Rammed . | . . . . Targets Rammed 3 | . . . 3 Kicked 3 | . . . 3 Crushed . | . . . . Highest Temperature 545 | . 120 545 476 Average Temperature 157 | . 52 159 168 Received Heat Transfer 723 | . 30 252 441 Effects 17 | . . 8 9 Shutdowns 5 | . . 2 3 Energy Bleed 3 | . . 3 . Interference 1 | . . 1 . Matter Decay 4 | . . 1 3 Short Circuit 2 | . . 1 1 Damage (major) 2 | . . . 2 Siege Activations . | . . . . Martial Activations . | . . . . Shielding Activations . | . . . . Robots Disrupted . | . . . . Combat Hostiles . | . . . . Robots Corrupted . | . . . . Combat Hostiles . | . . . . Parts Fried . | . . . . Impact Corruptions . | . . . . Robots Melted . | . . . . Combat Hostiles . | . . . . Parts Melted 2 | . . . 2 Heat Transferred 1989 | . 105 1070 814 Parts Sabotaged . | . . . . Parts Stolen . | . . . . Parts Stripped . | . . . . Power Chain Reactions . | . . . . Alert | -11 -10 -9 -8 ------- Run | Yrd Mat Mat Mat Maximum Alert Level . | . . . . Low Security (%) 100 | 100 100 100 100 Level 1 . | . . . . Level 2 . | . . . . Level 3 . | . . . . Level 4 . | . . . . Level 5 . | . . . . High Security . | . . . . Max Security . | . . . . Peak Influence 170 | . 40 98 170 Initial 35 | . . 8 35 Average 41 | . 3 34 77 Influence Increases 948 | . 51 457 440 Destroy 0b10 Robot/C 680 | . 40 320 320 Destroy 0b10 Robot/NC 20 | . 5 10 5 Destroy Leader 176 | . 2 94 80 Successful Hack 8 | . 4 . 4 Disable Machine 15 | . . 15 . Destroy Structure 4 | . . 3 1 Lose Combat Pursuer 45 | . . 15 30 Influence Decreases 948 | . 31 393 524 Entered New Map 61 | . . 12 49 Time Decay 727 | . 31 361 335 Lost Part 140 | . . . 140 Purge Threat 20 | . . 20 . Squads Dispatched 8 | . . 3 5 Investigation 3 | . . 2 1 Extermination . | . . . . Reinforcement 5 | . . 1 4 Assault . | . . . . Garrison . | . . . . Intercept . | . . . . Searches Triggered . | . . . . Construction Impeded . | . . . . Haulers Reinforced . | . . . . Active Scanning Responses . | . . . . Cargo Convoy Interrupts . | . . . . Stealth | -11 -10 -9 -8 --------- Run | Yrd Mat Mat Mat Distress Signals 4 | . . 4 . Communications Jammed . | . . . . Distress Signals . | . . . . Times Spotted 53 | . 5 23 25 Peak Tracking Total 7 | . 2 3 7 Tactical Retreats 3 | . . 1 2 Traps | -11 -10 -9 -8 ------- Run | Yrd Mat Mat Mat Traps Triggered 1 | . . 1 . Indirectly . | . . . . Trap Hack Attempts . | . . . . Triggered . | . . . . Disarmed . | . . . . Reprogrammed . | . . . . Reused . | . . . . Traps Extracted . | . . . . Installed . | . . . . Triggered . | . . . . Machines | -11 -10 -9 -8 ---------- Run | Yrd Mat Mat Mat Machines Disabled 1 | . . 1 . Max in Single Turn 1 | . . 1 . Machines Repaired . | . . . . Machines Dismantled . | . . . . Machines Sabotaged . | . . . . Overloaded Fab Kills . | . . . . Hacking | -11 -10 -9 -8 --------- Run | Yrd Mat Mat Mat Machines Accessed 11 | . 2 5 4 Terminals 8 | . 2 3 3 Fabricators . | . . . . Repair Stations . | . . . . Recycling Units 2 | . . 1 1 Scanalyzers 1 | . . 1 . Garrison Access . | . . . . Total Hacks 17 | . 4 7 6 Successful 8 | . 1 4 3 Failed 9 | . 3 3 3 Catastrophic 2 | . . . 2 Database Lockouts . | . . . . Manual 5 | . . 3 2 Terminals 12 | . 4 3 5 Fabricators . | . . . . Repair Stations . | . . . . Recycling Units 2 | . . 1 1 Scanalyzers 3 | . . 3 . Garrison Access . | . . . . Terminal Hacks 5 | . 1 2 2 Record 1 | . . . 1 Robot Analysis 1 | . 1 . . Prototype ID Bank 1 | . . 1 . Alert Level 1 | . . . 1 Unreport Threat 1 | . . 1 . Fabricator Hacks . | . . . . Repair Station Hacks . | . . . . Recycling Unit Hacks 1 | . . . 1 Report Inventory 1 | . . . 1 Scanalyzer 2 | . . 2 . Insert Component 1 | . . 1 . Retrieve Study 1 | . . 1 . Garrison Access Hacks . | . . . . Unauthorized Hacks . | . . . . Terminals . | . . . . Fabricators . | . . . . Repair Stations . | . . . . Recycling Units . | . . . . Scanalyzers . | . . . . Garrison Access . | . . . . Data Cores Recovered . | . . . . Used . | . . . . Hacking Detections 5 | . 2 1 2 Full Trace Events 3 | . . 1 2 Feedback Events . | . . . . Feedback Blocked . | . . . . Robot Schematics Acquired . | . . . . Robots Built . | . . . . Authchips . | . . . . Time . | . . . . Total Robot Build Rating . | . . . . Part Schematics Acquired . | . . . . Parts Built . | . . . . Authchips . | . . . . Time . | . . . . Total Part Build Rating . | . . . . Part Studies Acquired 1 | . . 1 . Parts Repaired . | . . . . Time . | . . . . Parts Recycled . | . . . . Recycled Matter . | . . . . Retrieved Matter . | . . . . Retrieved Components . | . . . . Parts Scanalyzed 1 | . . 1 . Part Schematics Acquired . | . . . . Parts Damaged . | . . . . Bothacking | -11 -10 -9 -8 ------------ Run | Yrd Mat Mat Mat Used RIF Installer . | . . . . Robots Hacked . | . . . . Non-combat . | . . . . Combat . | . . . . Robot Hacks Applied . | . . . . Relay Couplers Released . | . . . . Fabnet Peak Effective % . | . . . . Robots Rewired . | . . . . Allies Hacked . | . . . . Hacks Repelled . | . . . . Allies | -11 -10 -9 -8 -------- Run | Yrd Mat Mat Mat Total Allies . | . . . . Largest Group . | . . . . Highest-Rated Group . | . . . . Highest-Rated Ally . | . . . . Total Orders . | . . . . Ally Attacks . | . . . . Total Damage . | . . . . Kills . | . . . . Allies Corrupted . | . . . . Allies Melted . | . . . . Intel | -11 -10 -9 -8 ------- Run | Yrd Mat Mat Mat Active Infowar (turns) . | . . . . Robot Analysis Total 1 | . 1 . . Derelict Logs Recovered . | . . . . Drone Launches . | . . . . Drone Recoveries . | . . . . Exploration | -11 -10 -9 -8 ------------- Run | Yrd Mat Mat Mat Turns Passed 2414 | 109 355 1178 772 Spaces Moved 1475 | 82 236 809 348 Core 37 | 37 . . . Treads . | . . . . Legs 1438 | 45 236 809 348 Wheels . | . . . . Hover . | . . . . Flight . | . . . . Fastest Speed 50 | 50 120 105 105 Average Speed 112 | 117 120 111 108 Slowest Speed 250 | 250 120 120 175 Overloaded Moves . | . . . . Propulsion Burnouts . | . . . . Robots Hopped . | . . . . Potential Cave-ins . | . . . . Cave-ins Triggered . | . . . . Exploration Rate (%) 28 | 5 41 43 24 Regions Visited 3 Branch Regions . Pre-discovered Areas . | . . . . Known Exits Taken 2 | . 1 1 . Unknown Exits Taken 1 | 1 . . . Scrap Searched . | . . . . Spaces Dug . | . . . . Terrain Destroyed . | . . . . Melee . | . . . . Projectile . | . . . . AOE . | . . . . Terrain Rammed . | . . . . Walls Destroyed . | . . . . Machines Disabled . | . . . . Actions | -11 -10 -9 -8 --------- Run | Yrd Mat Mat Mat Total 2017 | 92 301 1000 624 Wait 332 | . 45 110 177 Move 1472 | 81 235 808 348 Hop . | . . . . Pick Up 20 | 5 8 6 1 Fast Attach 8 | 4 . 1 3 Attach 16 | 2 1 5 8 Detach 1 | . . 1 . Swap 21 | . 2 12 7 Drop 27 | . 5 16 6 Fire 105 | . 5 39 61 Melee 12 | . . 2 10 Ram . | . . . . Kick 3 | . . . 3 Crush . | . . . . Escape Stasis . | . . . . Rewire . | . . . . Trap . | . . . . Miscellaneous . | . . . . Route ------- -11/Scrapyard -10/Materials -9/Materials (discovered 2 exits: *Mat / *Min) -8/Materials History --------- Turn | Location | Event 22 | -11/Scrapyard | Discovered new exit (range 16) 110 | -11/Scrapyard | Entered Materials 317 | -10/Materials | Build established: Mutant 446 | -10/Materials | Discovered new exit (range 3) 448 | -10/Materials | Identified exit to Materials 465 | -10/Materials | Entered another Materials area 465 | -9/Materials | Evolved 2 slots: Propulsion x1, Weapon x1 1026 | -9/Materials | Build established: Scavenger-Gunner 1376 | -9/Materials | Discovered new exit (range 8) 1383 | -9/Materials | Identified exit to Mines 1636 | -9/Materials | Discovered new exit (range 3) 1638 | -9/Materials | Identified exit to Materials 1643 | -9/Materials | Entered another Materials area 1643 | -8/Materials | Evolved 2 slots: Power x1, Propulsion x1 1888 | -8/Materials | Build established: Scavenger-Mutant 2338 | -8/Materials | Core integrity fell below 50% 2370 | -8/Materials | Core integrity fell below 20% 2391 | -8/Materials | Lost 13 parts (2p4n1u6w) 2415 | -8/Materials | Destroyed by X-57 Shotgunner with High-powered Shotgun Last Messages --------------- Autogun destroyed. Penetrated by Slug. Hvy. Assault Rifle destroyed. Penetrated by Slug. X-62 Marksman destroyed. Acquired 61 matter. Acquired 60 matter. Acquired 55 matter. ALERT: Suspicious intruders detected, dispatching Specialist reinforcements to area. Acquired Imp. Deuterium Engine. Hvy. Assault Rifle destroyed. Acquired Pulse Rifle. Connecting with Terminal... ALERT: Suspicious activity at Terminal M001. Dispatching Investigation squad. Slug penetrates X-57 Shotgunner. X-57 Shotgunner knocked back. Slug penetrates Matter Pump. Matter Pump disabled. Map ----- +----------------------------------------------------+ | | | | | | | ?????????????????????????????????????????????????? | | ?????????????????????????????????????????????????? | | ?????????????????????????????????????????????????? | | ????????????##########?????????????????????????### | | ????????????# #?????????????????????????# | | ????????????# """ #?????????????????????????# | | ????????????# "R" ##?????????????????######## | | ????????????# " " ! #?????????????????#!! # | | ????????????# %##?????????????????#!! #! | | ????????????# !!! !#??????????????????#!! /* | | ????????????# !!!= #??????????????????#!! #! | | ????????????# !!!!= #??????????????????#!! # | | ????????????# =!!%= #??????????????????#!! # | | ?# ############"#########??????????######## # | | ?# ! #??????????# + # | | ?# [!! #??????????# """ # ### | | ?# H """ #??????????# """ # # | | ?############### %%"" #??????????# """ # # | | ???????????????# "%" #??????????# # # | | ???????????????# x #??????????# # + | | ???????######### % #???###########+### # | | ??? x ##### ## #?# #! | | ??? k@ + """ ## #?# # | | ??? u "T" #####/ """ ## #?# # | | ???########## ########+##???# """ ## ### # | | ????????????# ?????? ????# + # | | ????????????# ????? ????# """ # + | | ????????????# ???? ? ???# """ # """ ### | | ????????????# ??? ?? ???# """ # """ #?? | | ???????????? ??# ??? ???# # """ #?? | | ???????????? ??+ ???? ??########## """ #?? | | ??????????? ??# ?????? ???????????# ##? | | ???????????###+???#???????#????????????# #? | | ???????????????????????????????????????# #? | | ???????????????????????????????????????# "Y" #? | | ???????????????????????????????????????# """ #? | | ???????????????????????????????????????# ####+#### | | ???????????????????????????????????????# # | | ???????????????????????????????????????# # """ "" | | ???????????????????????????????????????? # """ "" | | ???????????????????????????????????????? # """ "" | | ???????????????????????????????????????? # | | ????????????????????????????#######????? #####+### | | ????????????????????????????# ###+## #??# # | | ????????????????????????????# " #??# + | | ????????????????????????????# "T #??# # | | ????????????????????????????# #??## ## | +----------------------------------------------------+ Best States ------------- Heat Dissipation 31 Energy Generation 23 Energy Capacity 400 Matter Stores 300 Matter Capacity 300 Sight Range 16 Terrain Scan Density 10 Evasion (%) 55 Item Schematics ----------------- None Robot Schematics ------------------ None Fabricated ------------ Nothing Repaired ---------- Nothing Studied --------- Aluminum Leg | -9/Materials | Hacked Alien Tech Used ----------------- None Achievements -------------- Item+ Challenges ------------ None Game ------ Seed InsulationShrapnelCharge Manual? 0 Play Time 00:57:34 Cumulative 9.6 hours Start 2025.11.22 @ 13:24:58 End 2025.11.22 @ 18:05:26 Sessions 1 Manual Loads 0 Difficulty Rogue Special Mode None Game No. 15 Rogue 15 Adventurer 0 Explorer 0 Win Type - Total 0 Types 0/0/0/0/0/0/0/0/0/0 Lore% 6 Gallery% 10 Achievement% 10 Wizard Run 0 Options --------- Layout 1 ASCII 0 Keyboard 1 Movement Arrows Keybinds 0 Fullscreen 0 Font 14/SmallcapsGlow Map View 55x38 Zoom Use 0% Tactical HUD 0 Map Filters NONE Filters NONE Steam 1 RUN: 58932b4c-685b-4969-b7d1-e0724253046d